Cogmind - Beta 10.2 @@@ ROGUE MODE // 2021.10.04 @ 21:36:24 Player: Momo Result: Destroyed by Y-45 Defender with Beam Rifle Performance ------------- Evolutions (1) 500 Regions Visited (2) 400 Robots Destroyed (21) 105 Value Destroyed (702) 702 Prototype IDs (3) 60 Alien Tech Used (0) 0 Bonus (200) 200 TOTAL SCORE: 1967 Bonus ------- Pacifist 200 Cogmind --------- Core Integrity 0/400 Matter 290/300 Energy 217/250 System Corruption 2% Temperature Cool (18) Movement Walking (180) Ox2 Location -9/Materials Parts ------- > --- POWER (1) -------- Ion Engine > --- PROPULSION (3) --- Light Treads Aluminum Leg Aluminum Leg > --- UTILITY (3) ------ Heat Sink Large Storage Unit Large Storage Unit > --- WEAPON (2) ------- Improved EM Shotgun Beam Rifle > --- INVENTORY (16) --- Ion Engine Light Nuclear Core Light Nuclear Core High-capacity Storage Unit Advanced Weight Redist. System Advanced Weight Redist. System Advanced Weight Redist. System Advanced Terrain Scanner Advanced Terrain Scanner Missile Launcher Missile Launcher Missile Launcher Missile Launcher Peak State ------------ > --- POWER ------------ Ion Engine > --- PROPULSION ------- Light Treads Aluminum Leg Aluminum Leg > --- UTILITY ---------- Heat Sink Large Storage Unit Large Storage Unit > --- WEAPON ----------- Improved EM Shotgun Improved EM Shotgun > --- INVENTORY -------- Ion Engine Light Nuclear Core Small Storage Unit Advanced Weight Redist. System Advanced Weight Redist. System Advanced Weight Redist. System Advanced Terrain Scanner Advanced Terrain Scanner Beam Rifle [Rating: 15] Favorites ----------- Power Ion Engine Engine Ion Engine Propulsion Aluminum Leg Treads Light Treads Leg Aluminum Leg Wheel Compact Wheel Utility Large Storage Unit Device Heat Sink Storage Large Storage Unit Weapon Particle Cannon Energy Gun Improved EM Shotgun Energy Cannon Particle Cannon Ballistic Gun Light Assault Rifle Build | -11 -10 -9 ------- Run | Scr Mat Mat Slots Evolved 2 | . . 2 Power . | . . . Propulsion 1 | . . 1 Utility 1 | . . 1 Weapon . | . . . Parts Attached 21 | 5 2 14 Power 2 | . . 2 Engine 2 | . . 2 Core . | . . . Reactor . | . . . Propulsion 7 | 2 . 5 Treads 1 | . . 1 Leg 3 | . . 3 Wheel 3 | 2 . 1 Hover . | . . . Flight . | . . . Utility 4 | 1 2 1 Device 1 | . . 1 Storage 3 | 1 2 . Processor . | . . . Hackware . | . . . Protection . | . . . Artifact . | . . . Weapon 8 | 2 . 6 Energy Gun 5 | 1 . 4 Energy Cannon 2 | . . 2 Ballistic Gun 1 | 1 . . Ballistic Cannon . | . . . Launcher . | . . . Special Weapon . | . . . Impact Weapon . | . . . Slashing Weapon . | . . . Piercing Weapon . | . . . Special Melee Weapon . | . . . Unidentified Prototypes 1 | . . 1 Parts Lost 9 | . . 9 Power 1 | . . 1 Propulsion 3 | . . 3 Utility . | . . . Weapon 5 | . . 5 Highest Loss Streak 5 | . . 5 Average Slot Usage (%) 79 | . 83 79 Engine 7 | . . 8 Treads 5 | . . 6 Leg 10 | . . 10 Wheel 6 | . 28 4 Device 8 | . . 9 Storage 22 | . 26 22 Energy Gun 8 | . 14 8 Energy Cannon 8 | . . 8 Ballistic Gun 1 | . 14 1 Naked Turns . | . . . Heaviest Build 46 | 7 35 46 Greatest Support 26 | 26 26 26 Greatest Overweight (x) 15 | . 1 15 Average Overweight (x) 2 | . . 2 Largest Inventory Capacity 16 | 6 16 16 Average Capacity 15 | 5 14 16 Most Carried 15 | . 1 15 Average Carried 8 | . . 9 Final Capacity 16 | 6 16 16 Final Carried 13 | . 1 13 Class Distribution -------------------- 54% | Mutant 45% | Scavenger-Mutant Dominant Class ---------------- Mutant | -10/Materials Mutant | -9/Materials Resources | -11 -10 -9 ----------- Run | Scr Mat Mat Matter Collected 380 | 145 . 235 Remotely . | . . . Salvage Created 843 | . . 843 Parts 55 | . . 55 Haulers Intercepted . | . . . Recyclers Shooed . | . . . Parts Field Recycled . | . . . Retrieved Matter . | . . . Parts Self-Destructed . | . . . Prevented . | . . . Kills | -11 -10 -9 ------- Run | Scr Mat Mat Combat Hostiles Destroyed 19 | . . 19 Guns 10 | . . 10 Cannons 9 | . . 9 Classes Destroyed 4 | . . 4 Watcher 2 | . . 2 Swarmer 3 | . . 3 Grunt 12 | . . 12 Sentry 4 | . . 4 Best Kill Streak 7 | . . 7 Combat Bots Only 6 | . . 6 Max Kills in Single Turn 1 | . . 1 Gunslinging . | . . . Exploded . | . . . Melee . | . . . Uniques/NPCs Destroyed . | . . . Combat | -11 -10 -9 -------- Run | Scr Mat Mat Damage Taken 1376 | . 21 1355 Core 402 | . . 402 Absorbed by Shields . | . . . Core Remaining (%) 100 | 100 100 . Volleys Fired 71 | . . 71 Largest 2 | . . 2 Hottest 136 | . . 136 Shots Fired 106 | . . 106 Gun 54 | . . 54 Cannon 52 | . . 52 Launcher . | . . . Special . | . . . Kinetic 10 | . . 10 Thermal 69 | . . 69 Explosive . | . . . Electromagnetic 27 | . . 27 Robot Hit Streak 10 | . . 10 Robot Miss Streak 3 | . . 3 Penetration Max . | . . . Secondary Targets 2 | . . 2 Max Gunslinging Chain 1 | . . 1 Shots Hit Robots 79 | . . 79 Core Hits 37 | . . 37 Critical Hits 1 | . . 1 Critical Kills . | . . . Critical Parts Destroyed 1 | . . 1 Melee Attacks . | . . . Impact . | . . . Slashing . | . . . Piercing . | . . . Sneak Attacks . | . . . Combat Hostiles . | . . . Follow-up Attacks . | . . . Damage Inflicted 1322 | . . 1322 Guns 603 | . . 603 Cannons 719 | . . 719 Explosions . | . . . Melee . | . . . Ramming . | . . . Kinetic 66 | . . 66 Thermal 864 | . . 864 Explosive . | . . . Electromagnetic 392 | . . 392 Impact . | . . . Slashing . | . . . Piercing . | . . . Highest Corruption 2 | . . 2 Average Corruption 2 | . . 2 Corruption Purged . | . . . Effects 2 | . . 2 Message Errors 2 | . . 2 Overload Shots . | . . . Overflow Damage 11 | . . 11 Projectiles 11 | . . 11 Explosions . | . . . Melee . | . . . Knockbacks . | . . . Impact . | . . . Kinetic . | . . . Secondary . | . . . Self-Inflicted Damage . | . . . Shots . | . . . Rammed . | . . . Targets Rammed . | . . . Kicked . | . . . Crushed . | . . . Highest Temperature 207 | . . 207 Average Temperature 56 | . . 56 Received Heat Transfer 699 | . 12 687 Siege Activations . | . . . Robots Corrupted . | . . . Combat Hostiles . | . . . Parts Fried 1 | . . 1 Impact Corruptions . | . . . Robots Melted . | . . . Combat Hostiles . | . . . Parts Melted 4 | . . 4 Heat Transferred 1644 | . . 1644 Parts Sabotaged . | . . . Parts Stolen . | . . . Parts Stripped . | . . . Power Chain Reactions . | . . . Missiles Intercepted . | . . . Alert | -11 -10 -9 ------- Run | Scr Mat Mat Peak Influence 217 | . 30 217 Initial 12 | . . 12 Average 83 | . 13 90 Maximum Alert Level 1 | . . 1 Low Security (%) 97 | 100 100 97 Level 1 2 | . . 2 Level 2 . | . . . Level 3 . | . . . Level 4 . | . . . Level 5 . | . . . High Security . | . . . Max Security . | . . . Squads Dispatched 1 | . . 1 Investigation . | . . . Extermination . | . . . Reinforcement 1 | . . 1 Assault . | . . . Garrison . | . . . Intercept . | . . . Construction Impeded . | . . . Haulers Reinforced . | . . . Stealth | -11 -10 -9 --------- Run | Scr Mat Mat Distress Signals 6 | . 1 5 Communications Jammed . | . . . Distress Signals . | . . . Times Spotted 35 | . 4 31 Peak Tracking Total 6 | . 4 6 Tactical Retreats . | . . . Traps | -11 -10 -9 ------- Run | Scr Mat Mat Traps Triggered 1 | . . 1 Indirectly . | . . . Trap Hack Attempts . | . . . Triggered . | . . . Disarmed . | . . . Reprogrammed . | . . . Reused . | . . . Traps Extracted . | . . . Installed . | . . . Triggered . | . . . Machines | -11 -10 -9 ---------- Run | Scr Mat Mat Machines Disabled . | . . . Max in Single Turn . | . . . Machines Sabotaged . | . . . Garrisons Compromised . | . . . Overloaded Fab Kills . | . . . Fab Network Shutdowns . | . . . Hacking | -11 -10 -9 --------- Run | Scr Mat Mat Machines Accessed 2 | . . 2 Terminals 2 | . . 2 Fabricators . | . . . Repair Stations . | . . . Recycling Units . | . . . Scanalyzers . | . . . Garrison Access . | . . . Total Hacks 10 | . . 10 Successful 6 | . . 6 Failed 4 | . . 4 Catastrophic . | . . . Database Lockouts . | . . . Manual 6 | . . 6 Terminals 10 | . . 10 Fabricators . | . . . Repair Stations . | . . . Recycling Units . | . . . Scanalyzers . | . . . Garrison Access . | . . . Terminal Hacks 4 | . . 4 Prototype ID Bank 1 | . . 1 Locate Traps 1 | . . 1 Zone Layout 2 | . . 2 Fabricator Hacks . | . . . Repair Station Hacks . | . . . Recycling Unit Hacks . | . . . Scanalyzer . | . . . Garrison Access Hacks . | . . . Unauthorized Hacks 2 | . . 2 Terminals 2 | . . 2 Botnet 1 | . . 1 Operators 1 | . . 1 Fabricators . | . . . Repair Stations . | . . . Recycling Units . | . . . Scanalyzers . | . . . Garrison Access . | . . . Data Cores Recovered . | . . . Used . | . . . Hacking Detections 2 | . . 2 Full Trace Events . | . . . Feedback Events . | . . . Feedback Blocked . | . . . Robot Schematics Acquired . | . . . Robots Built . | . . . Matter . | . . . Time . | . . . Total Robot Build Rating . | . . . Part Schematics Acquired . | . . . Parts Built . | . . . Matter . | . . . Time . | . . . Total Part Build Rating . | . . . Parts Repaired . | . . . Time . | . . . Parts Recycled . | . . . Recycled Matter . | . . . Retrieved Matter . | . . . Retrieved Components . | . . . Parts Scanalyzed . | . . . Part Schematics Acquired . | . . . Parts Damaged . | . . . Bothacking | -11 -10 -9 ------------ Run | Scr Mat Mat Used RIF Installer . | . . . Robots Hacked . | . . . Non-combat . | . . . Combat . | . . . Robot Hacks Applied . | . . . Relay Couplers Released . | . . . Robots Rewired . | . . . Allies Hacked . | . . . Hacks Repelled . | . . . Allies | -11 -10 -9 -------- Run | Scr Mat Mat Total Allies . | . . . Largest Group . | . . . Highest-Rated Group . | . . . Highest-Rated Ally . | . . . Total Orders . | . . . Ally Attacks . | . . . Total Damage . | . . . Kills . | . . . Allies Corrupted . | . . . Allies Melted . | . . . Intel | -11 -10 -9 ------- Run | Scr Mat Mat Robot Analysis Total . | . . . Derelict Logs Recovered . | . . . Drone Launches . | . . . Drone Recoveries . | . . . Exploration | -11 -10 -9 ------------- Run | Scr Mat Mat Turns Passed 1362 | 34 73 1255 Spaces Moved 712 | 31 71 610 Core 18 | 2 . 16 Treads 47 | . . 47 Legs 296 | . . 296 Wheels 351 | 29 71 251 Hover . | . . . Flight . | . . . Fastest Speed 50 | 50 90 100 Average Speed 158 | 86 98 169 Slowest Speed 800 | 90 100 800 Overloaded Moves . | . . . Propulsion Burnouts . | . . . Robots Hopped . | . . . Cave-ins Triggered . | . . . Exploration Rate (%) 30 | 3 26 62 Regions Visited 2 Branch Regions . Pre-discovered Areas . | . . . Known Exits Taken . | . . . Unknown Exits Taken 2 | 1 1 . Scrap Searched . | . . . Spaces Dug . | . . . Terrain Destroyed . | . . . Melee . | . . . Projectile . | . . . AOE . | . . . Terrain Rammed . | . . . Walls Destroyed . | . . . Machines Disabled . | . . . Actions | -11 -10 -9 --------- Run | Scr Mat Mat Total 834 | 35 73 726 Wait 14 | . . 14 Move 710 | 30 70 610 Hop . | . . . Pick Up 14 | . . 14 Fast Attach 20 | 5 2 13 Attach 1 | . . 1 Detach 1 | . 1 . Swap . | . . . Drop 3 | . . 3 Fire 71 | . . 71 Melee . | . . . Ram . | . . . Kick . | . . . Crush . | . . . Escape Stasis . | . . . Rewire . | . . . Trap . | . . . Miscellaneous . | . . . Route ------- -11/Scrapyard -10/Materials -9/Materials (discovered 4 exits: [*Mat x3] / [Min]) History --------- Turn | Location | Event 14 | -11/Scrapyard | Discovered new exit (range 15) 35 | -11/Scrapyard | Entered Materials 102 | -10/Materials | Discovered new exit (range 6) 108 | -10/Materials | Entered another Materials area 108 | -9/Materials | Evolved 2 slots: Propulsion x1, Utility x1 174 | -9/Materials | Discovered new exit (range 14) 282 | -9/Materials | Core integrity fell below 50% 331 | -9/Materials | Build established: Mutant 332 | -9/Materials | Lost 5 parts (2n3w) 820 | -9/Materials | Discovered new exit (range 14) 852 | -9/Materials | Core integrity fell below 20% 1048 | -9/Materials | Build established: Scavenger-Mutant 1135 | -9/Materials | Discovered new exit (range 12) 1343 | -9/Materials | Discovered new exit (range 16) 1363 | -9/Materials | Destroyed by Y-45 Defender with Beam Rifle Last Messages --------------- 01013_ W-16 Scout sends out distress signal. 01025_ Y-45 Defender destroyed. 01025_ Door malfunctions. 01039_ Acquired Missile Launcher. 01063_ K-01 Serf collects debris. 01135_ EXIT=FOUND 01169_ Dropped Sml. Storage Unit. 01200_ %MG/ZIFN7&UA JGWJHTOPO 01314_ W-16 Scout sends out distress signal. 01336_ K-01 Serf cleans the Terminal. 01343_ EXIT=FOUND 01350_ K-01 Serf cleans the Terminal. 01352_ W-16 Scout destroyed. 01353_ K-01 Serf collects debris. 01356_ O-16 Technician uses terminal to summon reinforcements. 01356_ ALERT: Hostiles spotted, dispatching reinforcements to Terminal M010. 01356_ O-16 Technician locks terminal. 01357_ K-01 Serf cleans the Terminal. Map ----- +----------------------------------------------------+ | ???????????????????????????????????????????????### | | ???????????????????????????????????????????????# | | ???????????????????????????????????????????????# | | ???????????????????????????????????????????????#"" | | ?????????????????????????????????????????????????? | | ?????????????????????????????????????????????????? | | ?????????????????????????????????????????????????? | | ?????????????????????????????????????????????????? | | ?????????????????????????????????????????????????? | | ????????????????????????????????????????????###### | | ?????????????????????????????????????? ?????? | | ?????????????????????????????????????? ?????# """ | | ?????????????????????????????????????? ?????# """ | | ?????????????????????????????????????? ?????# """ | | ????????????????????????????????? #??? ?????# """ | | ???????????????????????????????? #??? ?????# | | ?????????????????????????# """ #??? #????# | | ?????????????????????????#""""" #??# #????# | | ?????????????????????????#""""" #??# #????###### | | ?????????????????????????#""""" #??# #?????????? | | ?????????????????????????# """ ????# #?????????? | | ???????????????????######? ??????# #?????????? | | ?????????????###+### ###/######### ########### | | ????????????# o a | | ????????????# < T ! | | ????????????# u kY%@ | | ??????????????### # =##########+############## | | ???????????????????######???????? ???????????? | | ??????????????????????????????? ?????????? | | ??????????????????????????????# #??######? | | ??????????????????????????????# #??# | | ??????????????????????????????# #??# | | ??????????????????????????????# """" #??# = | | ??????????????????????????????# """" #??# | | ??????????????????????????????#% """" #??# != | | ??????????????????????????????###########??# !=? | | ???????????????????????????????????????????######? | | ?????????????????????????????????????????????????? | | ?????????????????????????????????????????????????? | | ?????????????????????????????????????????????????? | | ?????????????????????????????????????????????????? | | ?????????????????????????????????????????????????? | | ?????????????????????????????????????????????????? | | ?????????????????????????????????????????????????? | | ?????????????????????????????????????????????????? | | ?????????????????????????????????????????????????? | | ?????????????????????????????????????????????????? | | ?????????????????????????????????????????????????? | | ?????????????????????????????????????????????????? | | ?????????????????????????????????????????????????? | +----------------------------------------------------+ Best States ------------- Heat Dissipation 38 Energy Generation 10 Energy Capacity 250 Matter Stores 300 Matter Capacity 300 Sight Range 16 Terrain Scan Density 10 Evasion (%) 42 Recoil Reduction 1 Item Schematics ----------------- None Robot Schematics ------------------ None Fabricated ------------ Nothing Alien Tech Used ----------------- None Achievements -------------- None Challenges ------------ None Game ------ Seed AntimatterLatentWell Manual? 0 Play Time 00:09:08 Cumulative 206.0 hours Start 2021.10.04 @ 21:28:06 End 2021.10.04 @ 21:36:24 Sessions 1 Manual Loads 0 Difficulty Rogue Special Mode None Game No. 96 Rogue 92 Adventurer 0 Explorer 4 Win Type - Total 12 Types 4/0/2/2/0/2/2/0/0 Lore% 73 Gallery% 78 Achievement% 67 Wizard Run 0 Options --------- ASCII 0 Keyboard 0 Movement Mouse Keybinds 0 Fullscreen 1 Font 18/SmallcapsGlow Map View 76x50 Tactical HUD 1 Map Filters NONE Filters NONE Steam 1 RUN: 37128617-533e-4df1-8f46-d31811303400